Cogmind - Beta 17 @@@ ROGUE MODE // 2026.07.16 @ 14:43:35 Player: Hoosbot mk. 3.1415927 Result: Destroyed by S-10 Pest with Light Assault Rifle Performance ------------- Evolutions (1) 500 Regions Visited (2) 400 Robots Destroyed (38) 190 Value Destroyed (688) 688 Prototype IDs (0) 0 Alien Tech Used (0) 0 Bonus (0) 0 TOTAL SCORE: 1778 Bonus ------- None Cogmind --------- Core Integrity 0/400 Matter 290/300 Energy 150/160 System Corruption 7% Temperature Cool (0) Movement Rolling (80) Location -9/Materials Parts ------- > --- POWER (1) -------- Light Nuclear Core > --- PROPULSION (3) --- Wheel Wheel Wheel > --- UTILITY (3) ------ Medium Storage Unit Seismic Detector Transport Network Coupler > --- WEAPON (2) ------- Heavy Assault Rifle Mace > --- INVENTORY (10) --- Light Ion Engine Improved Heat Sink Structural Scanner Visual Processing Unit Terrain Scanner Field Recycling Unit (0) Faulty Improved Assault Rifle Plasma Cutter Heavy Hammer Peak State ------------ > --- POWER ------------ Light Nuclear Core > --- PROPULSION ------- Wheel Wheel Wheel > --- UTILITY ---------- Improved Heat Sink Large Storage Unit Structural Scanner > --- WEAPON ----------- Plasma Cutter Heavy Hammer > --- INVENTORY -------- Light Ion Engine Wheel Small Storage Unit Structural Scanner Spread Laser Light Assault Rifle Light Assault Rifle Heavy Assault Rifle Mace [Rating: 16] Favorites ----------- Power Ion Engine Engine Ion Engine Power Core Light Nuclear Core Propulsion Wheel Leg Aluminum Leg Wheel Wheel Flight Unit Flight Unit Utility Seismic Detector Device Seismic Detector Storage Small Storage Unit Processor Transport Network Coupler Protection Light Armor Plating Weapon Light Assault Rifle Energy Gun EM Pulse Gun Energy Cannon Beam Cannon Ballistic Gun Light Assault Rifle Launcher Grenade Launcher Special Weapon Plasma Cutter Impact Weapon Heavy Hammer Special Melee Weapon Datajack Build | -11 -10 -9 ------- Run | Yrd Mat Mat Slots Evolved 2 | . . 2 Power . | . . . Propulsion 1 | . . 1 Utility 1 | . . 1 Weapon . | . . . Parts Attached 47 | 8 6 33 Power 5 | 1 . 4 Engine 4 | 1 . 3 Core 1 | . . 1 Reactor . | . . . Propulsion 13 | 2 2 9 Treads . | . . . Leg 2 | 2 . . Wheel 9 | . . 9 Hover . | . . . Flight 2 | . 2 . Utility 16 | 2 1 13 Device 7 | 1 . 6 Storage 7 | 1 1 5 Processor 1 | . . 1 Hackware . | . . . Protection 1 | . . 1 Artifact . | . . . Weapon 13 | 3 3 7 Energy Gun 1 | . 1 . Energy Cannon 1 | . . 1 Ballistic Gun 3 | 2 . 1 Ballistic Cannon . | . . . Launcher 1 | . 1 . Special Weapon 3 | 1 . 2 Impact Weapon 3 | . . 3 Slashing Weapon . | . . . Piercing Weapon . | . . . Special Melee Weapon 1 | . 1 . Unidentified Prototypes . | . . . Corrupted Parts 1 | . . 1 System Corruption 7 | . . 7 Parts Lost 18 | . 1 17 Power 1 | . . 1 Propulsion 9 | . . 9 Utility 2 | . . 2 Weapon 6 | . 1 5 Highest Loss Streak 11 | . 1 11 To Critical Strikes . | . . . Average Backups 6 | 1 3 7 Power . | . . . Propulsion . | . . 1 Utility 1 | . . 1 Weapon 3 | 1 3 3 Tool/Special . | . . . Unused Backups 8 | . . 8 Power 1 | . . 1 Propulsion 1 | . . 1 Utility 2 | . . 2 Weapon 4 | . . 4 Tool/Special . | . . . Average Slot Usage (%) 83 | . 96 80 Engine 6 | . 11 5 Core 3 | . . 4 Leg 6 | . 22 2 Wheel 16 | . . 20 Flight 2 | . 5 1 Device 12 | . 14 11 Storage 10 | . 14 9 Processor 1 | . . 2 Energy Gun 1 | . 1 . Ballistic Gun 7 | . 21 3 Special Weapon 5 | . 1 6 Impact Weapon 6 | . . 8 Peak Build Rating 16 | 7 7 16 Average Rating 9 | 6 6 10 On Entrance 4 | . 7 6 Avg Prop Armor Cover (%) 2 | . . 2 Naked Turns . | . . . Heaviest Build 33 | 13 15 33 Greatest Support 36 | 20 20 36 Greatest Overweight (x) 2 | . . 2 Average Overweight (x) . | . . . Largest Inventory Capacity 15 | 8 15 15 Average Capacity 9 | 7 8 10 Most Carried 14 | 4 7 14 Average Carried 6 | 1 4 7 Final Capacity 10 | 8 8 10 Final Carried 9 | 2 6 9 Class Distribution -------------------- 54% | Mutant 45% | Scavenger-Mutant Dominant Class ---------------- Mutant | -10/Materials Scavenger-Mutant | -9/Materials Resources | -11 -10 -9 ----------- Run | Yrd Mat Mat Matter Collected 969 | 300 8 661 Remotely . | . . . Salvage Created 1188 | 135 24 1029 Parts 70 | 7 7 56 Haulers Intercepted 1 | . . 1 Recyclers Shooed 4 | . 1 3 Parts Field Recycled . | . . . Retrieved Matter . | . . . Parts Self-Destructed . | . . . Prevented . | . . . Parts Restored . | . . . Kills | -11 -10 -9 ------- Run | Yrd Mat Mat Combat Hostiles Destroyed 20 | . 4 16 Melee 3 | . . 3 Guns 4 | . 1 3 Cannons 8 | . . 8 AOE 3 | . 3 . Classes Destroyed 10 | 2 2 6 Worker 6 | . . 6 Builder 3 | . . 3 Tunneler 3 | 2 . 1 Hauler 1 | . . 1 Recycler 3 | 1 . 2 Operator 1 | . . 1 Watcher 1 | . . 1 Swarmer 9 | . 3 6 Grunt 4 | . 1 3 Sentry 7 | . . 7 Best Kill Streak 4 | 3 3 4 Combat Bots Only 4 | . 3 4 Max Kills in Single Turn 3 | 1 3 1 Gunslinging . | . . . Exploded 3 | . 3 . Melee 1 | . . 1 Uniques/NPCs Destroyed . | . . . Combat | -11 -10 -9 -------- Run | Yrd Mat Mat Hostile Shots Fired 213 | . 30 183 Missed 53 | . 6 47 Hits 160 | . 24 136 Projectile 160 | . 24 136 Critical Strikes 4 | . . 4 Damage Taken 1884 | . 233 1651 Core 430 | . 30 400 Absorbed by Shields . | . . . Regen/Repaired (Parts) 50 | . . 50 Core Remaining (%) 94 | 100 88 . Volleys Fired 132 | 5 24 103 Largest 2 | 2 2 2 Hottest 160 | 40 140 160 Shots Fired 160 | 10 31 119 Gun 60 | 10 24 26 Cannon 26 | . . 26 Launcher 1 | . 1 . Special 73 | . 6 67 Kinetic 41 | 10 20 11 Thermal 99 | . 6 93 Explosive 1 | . 1 . Electromagnetic 19 | . 4 15 Robot Hit Streak 8 | 6 7 8 Robot Miss Streak 5 | 2 5 3 Penetration Max . | . . . Secondary Targets . | . . . Shots Hit Robots 116 | 7 12 97 Core Hits 50 | 5 6 39 Critical Kills 2 | . . 2 Critical Parts Destroyed 1 | . . 1 Critical Strikes 6 | . . 6 Smash 4 | . . 4 Sever 2 | . . 2 Melee Attacks 24 | . 3 21 Impact 21 | . . 21 Slashing . | . . . Piercing . | . . . Sneak Attacks 6 | . . 6 Combat Hostiles . | . . . Follow-up Attacks . | . . . Damage Inflicted 2206 | 64 257 1885 Guns 368 | 64 87 217 Cannons 315 | . . 315 Explosions 235 | . 122 113 Melee 744 | . . 744 Ramming . | . . . Kinetic 175 | 64 35 76 Thermal 972 | . 48 924 Explosive 122 | . 122 . Electromagnetic 193 | . 52 141 Impact 744 | . . 744 Slashing . | . . . Piercing . | . . . Highest Corruption 7 | . 1 7 Average Corruption 1 | . 1 7 Corruption Purged . | . . . Corruption Blocked . | . . . Effects 2 | . 2 . Message Errors 1 | . 1 . Heat Flow Errors 1 | . 1 . Overload Shots . | . . . Overflow Damage 309 | . . 309 Projectiles 16 | . . 16 Explosions 88 | . . 88 Melee 205 | . . 205 Knockbacks 1 | . . 1 Impact 1 | . . 1 Kinetic . | . . . Secondary . | . . . Self-Inflicted Damage 98 | . . 98 Shots 1 | . . 1 Rammed . | . . . Targets Rammed . | . . . Kicked . | . . . Crushed . | . . . Highest Temperature 301 | . 202 301 Average Temperature 128 | . 81 151 Received Heat Transfer 528 | . 96 432 Effects 3 | . . 3 Interference 3 | . . 3 Siege Activations . | . . . Martial Activations . | . . . Shielding Activations . | . . . Robots Disrupted . | . . . Combat Hostiles . | . . . Robots Corrupted 2 | . . 2 Combat Hostiles 1 | . . 1 Parts Fried 7 | . 1 6 Impact Corruptions 6 | . . 6 Robots Melted 1 | . . 1 Combat Hostiles 1 | . . 1 Parts Melted 3 | . . 3 Heat Transferred 2457 | . 100 2357 Parts Sabotaged . | . . . Parts Stolen . | . . . Parts Stripped . | . . . Power Chain Reactions . | . . . Alert | -11 -10 -9 ------- Run | Yrd Mat Mat Maximum Alert Level . | . . . Low Security (%) 100 | 100 100 100 Level 1 . | . . . Level 2 . | . . . Level 3 . | . . . Level 4 . | . . . Level 5 . | . . . High Security . | . . . Max Security . | . . . Peak Influence 144 | 10 78 144 Initial 7 | . . 7 Average 39 | . 15 50 Influence Increases 799 | 15 110 674 Destroy 0b10 Robot/C 400 | . 80 320 Destroy 0b10 Robot/NC 90 | 15 . 75 Destroy Leader 134 | . 20 114 Successful Hack 7 | . . 7 Disable Machine 60 | . . 60 Destroy Structure 33 | . 10 23 Partial Spotted 30 | . . 30 Lose Combat Pursuer 45 | . . 45 Influence Decreases 692 | 15 91 586 Entered New Map 12 | . . 12 Time Decay 549 | 15 81 453 Lost Part 131 | . 10 121 Squads Dispatched 6 | . 2 4 Investigation 3 | . 1 2 Extermination . | . . . Reinforcement 3 | . 1 2 Assault . | . . . Garrison . | . . . Intercept . | . . . Searches Triggered . | . . . Construction Impeded . | . . . Haulers Reinforced . | . . . Active Scanning Responses . | . . . Cargo Convoy Interrupts . | . . . Stealth | -11 -10 -9 --------- Run | Yrd Mat Mat Distress Signals 2 | . 1 1 Communications Jammed . | . . . Distress Signals . | . . . Times Spotted 48 | . 13 35 Peak Tracking Total 7 | . 6 7 Tactical Retreats 2 | . . 2 Traps | -11 -10 -9 ------- Run | Yrd Mat Mat Traps Triggered 2 | . 2 . Indirectly . | . . . Trap Hack Attempts . | . . . Triggered . | . . . Disarmed . | . . . Reprogrammed . | . . . Reused . | . . . Traps Extracted . | . . . Installed . | . . . Triggered . | . . . Machines | -11 -10 -9 ---------- Run | Yrd Mat Mat Machines Disabled 4 | . . 4 Max in Single Turn 2 | . . 2 Machines Repaired . | . . . Machines Dismantled 1 | . . 1 Machines Sabotaged . | . . . Overloaded Fab Kills . | . . . Hacking | -11 -10 -9 --------- Run | Yrd Mat Mat Machines Accessed 4 | . . 4 Terminals 3 | . . 3 Fabricators . | . . . Repair Stations 1 | . . 1 Recycling Units . | . . . Scanalyzers . | . . . Garrison Access . | . . . Total Hacks 17 | . . 17 Successful 12 | . . 12 Failed 5 | . . 5 Catastrophic 1 | . . 1 Database Lockouts . | . . . Manual 1 | . . 1 Terminals 12 | . . 12 Fabricators . | . . . Repair Stations 5 | . . 5 Recycling Units . | . . . Scanalyzers . | . . . Garrison Access . | . . . Terminal Hacks 8 | . . 8 Record 5 | . . 5 Alert Level 1 | . . 1 Dispatch Records 1 | . . 1 Transport Status 1 | . . 1 Fabricator Hacks . | . . . Repair Station Hacks 4 | . . 4 Scan Component 2 | . . 2 Repair 2 | . . 2 Recycling Unit Hacks . | . . . Scanalyzer . | . . . Garrison Access Hacks . | . . . Unauthorized Hacks . | . . . Terminals . | . . . Fabricators . | . . . Repair Stations . | . . . Recycling Units . | . . . Scanalyzers . | . . . Garrison Access . | . . . Data Cores Recovered . | . . . Used . | . . . Hacking Detections 4 | . . 4 Full Trace Events 2 | . . 2 Feedback Events . | . . . Feedback Blocked . | . . . Robot Schematics Acquired . | . . . Robots Built . | . . . Authchips . | . . . Time . | . . . Total Robot Build Rating . | . . . Part Schematics Acquired . | . . . Parts Built . | . . . Authchips . | . . . Time . | . . . Total Part Build Rating . | . . . Part Studies Acquired . | . . . Parts Repaired 2 | . . 2 Time 64 | . . 64 Parts Recycled . | . . . Recycled Matter . | . . . Retrieved Matter . | . . . Retrieved Components . | . . . Parts Scanalyzed . | . . . Part Schematics Acquired . | . . . Parts Damaged . | . . . Bothacking | -11 -10 -9 ------------ Run | Yrd Mat Mat Used RIF Installer . | . . . Robots Hacked 2 | . 2 . Non-combat 1 | . 1 . Combat 1 | . 1 . Robot Hacks Applied 2 | . 2 . parse_system 2 | . 2 . Relay Couplers Released . | . . . Fabnet Peak Effective % . | . . . Robots Rewired . | . . . Allies Hacked . | . . . Hacks Repelled . | . . . Allies | -11 -10 -9 -------- Run | Yrd Mat Mat Total Allies . | . . . Largest Group . | . . . Highest-Rated Group . | . . . Highest-Rated Ally . | . . . Total Orders . | . . . Ally Attacks . | . . . Total Damage . | . . . Kills . | . . . Allies Corrupted . | . . . Allies Melted . | . . . Intel | -11 -10 -9 ------- Run | Yrd Mat Mat Active Infowar (turns) 1800 | 143 385 1272 Terrain 104 | . . 104 Structural 317 | . . 317 Seismic 1483 | 143 385 955 T.N.C. 302 | . . 302 Robot Analysis Total . | . . . Derelict Logs Recovered . | . . . Drone Launches . | . . . Drone Recoveries . | . . . Exploration | -11 -10 -9 ------------- Run | Yrd Mat Mat Turns Passed 2210 | 204 385 1621 Spaces Moved 1527 | 153 273 1101 Core 147 | 16 . 131 Treads . | . . . Legs 405 | 137 176 92 Wheels 793 | . . 793 Hover . | . . . Flight 182 | . 97 85 Fastest Speed 37 | 50 37 37 Average Speed 89 | 112 90 86 Slowest Speed 190 | 120 120 190 Overloaded Moves . | . . . Propulsion Burnouts . | . . . Robots Hopped . | . . . Potential Cave-ins . | . . . Cave-ins Triggered . | . . . Exploration Rate (%) 35 | 5 41 60 Regions Visited 2 Branch Regions . Pre-discovered Areas . | . . . Known Exits Taken . | . . . Unknown Exits Taken 2 | 1 1 . Scrap Searched . | . . . Spaces Dug 2 | . 2 . Terrain Destroyed 31 | . 9 22 Melee . | . . . Projectile 4 | . 3 1 AOE 27 | . 6 21 Terrain Rammed . | . . . Walls Destroyed . | . . . Machines Disabled . | . . . Actions | -11 -10 -9 --------- Run | Yrd Mat Mat Total 2078 | 175 366 1537 Wait 223 | . 45 178 Move 1525 | 152 272 1101 Hop . | . . . Pick Up 51 | 9 5 37 Fast Attach 7 | . . 7 Attach 40 | 7 3 30 Detach 15 | . 3 12 Swap 32 | 2 10 20 Drop 20 | . 1 19 Fire 132 | 5 24 103 Melee 24 | . 3 21 Ram . | . . . Kick . | . . . Crush . | . . . Escape Stasis . | . . . Rewire 2 | . . 2 Trap . | . . . Miscellaneous 7 | . . 7 Route ------- -11/Scrapyard -10/Materials -9/Materials (discovered 1 exit: [*Sto]) History --------- Turn | Location | Event 13 | -11/Scrapyard | Discovered new exit (range 16) 205 | -11/Scrapyard | Entered Materials 302 | -10/Materials | Build established: Mutant 559 | -10/Materials | Discovered new exit (range 16) 590 | -10/Materials | Entered another Materials area 590 | -9/Materials | Evolved 2 slots: Propulsion x1, Utility x1 901 | -9/Materials | Core integrity fell below 50% 942 | -9/Materials | Lost 11 parts (1p4n2u4w) 1524 | -9/Materials | Build established: Scavenger-Mutant 1543 | -9/Materials | Repaired Plasma Cutter 1667 | -9/Materials | Repaired Plasma Cutter 1963 | -9/Materials | Core integrity fell below 20% 2203 | -9/Materials | Discovered new exit (range 13) 2211 | -9/Materials | Destroyed by S-10 Pest with Light Assault Rifle Last Messages --------------- ALERT: Suspicious activity at Terminal M009. Dispatching Investigation squad. Terminal unresponsive. Sneak attack on K-01 Serf. K-01 Serf suffers critical hit (Smash). K-01 Serf destroyed. Acquired 10 matter. R-06 Scavenger collects Wheel. O-16 Technician: "IFF HANDSHAKE FAILED. SECURING TERMINAL." EXIT=FOUND C-30 ARC bursts open, deploying its payload. S-10 Pest unfolds itself. O-16 Technician uses terminal to summon reinforcements. ALERT: Hostiles spotted, dispatching reinforcements to Terminal M010. O-16 Technician locks terminal. Wheel destroyed. Integrated Corrupted Wheel (+7). Map ----- +----------------------------------------------------+ | | | | | | | ?????????????????????????????????????????????????? | | ?????????????????????????????????????????????????? | | ?????????????????????????????????????????????????? | | ?????????????????????????????????????????????????? | | ?????????????????????????????????????????????????? | | ?????????????????????????????????????????????????? | | ?????????????????????????????????????????????????? | | ?????????????????????????????????????????????????? | | ?????????????????????????????????????????????????? | | ?????????????????????????????????????????????????? | | ?????????????????????????????????????????????????? | | ?????????????????????????????????????????????????? | | ?????????????????????????????????????????????????? | | ?? ? ??a????????????????????????????????????????? | | ? ??????????????????????????????????????????? | | ? T ?????????????????????????????????????????? | | ?# ????????????????????????????????????????? | | ?# ? ???????????????????????????????????????? | | ?# """"" ???????????????######?????????????????? | | ?# """"" ############## s #?????????????????? | | ?# """"" s #?????????????????? | | ?+ ! s